bitfinex/quotes_SOLUSD_20250207
["timestamp","ask_amount","ask_price","bid_price","bid_amount"]
[1738905513009,21.50277967,194.01,194.0,0.063]
[1738905513221,37.47478934,194.01,194.0,0.063]
[1738905513422,50.88663787,194.01,194.0,0.063]
[1738905520510,21.37728967,194.01,194.0,0.063]
[1738905520717,21.12630967,194.01,194.0,0.063]
[1738905521017,15.97200967,194.01,194.0,0.063]
[1738905523027,21.12630967,194.01,194.0,0.063]
[1738905524638,15.97200967,194.01,194.0,0.063]
[1738905526244,16.00200967,194.01,194.0,0.063]
[1738905527124,0.03,194.01,194.0,0.063]
[1738905528523,16.00200967,194.01,194.0,0.063]
[1738905528732,10.24824145,194.01,194.0,0.063]
[1738905531528,15.40254145,194.01,194.0,0.063]
[1738905539650,15.65352145,194.01,194.0,0.063]
[1738905539861,16.35302737,194.01,194.0,0.063]
[1738905540066,57.22599317,194.01,194.0,0.063]
[1738905540239,16.35302737,194.01,194.0,0.063]
[1738905540433,10.24824145,194.01,194.0,0.063]
[1738905543264,0.03,194.01,194.0,0.063]
[1738905544767,10.24824145,194.01,194.0,0.063]
[1738905545451,0.03,194.01,194.0,0.063]
[1738905547672,0.03,194.01,194.0,137.263]
[1738905547968,0.03,194.01,194.0,224.0176]
[1738905548255,0.03,194.01,194.0,234.23584145]
[1738905548755,0.03,194.01,194.0,247.77317998]
[1738905548944,0.03,194.01,194.0,248.02415998]
[1738905549146,0.03,194.01,194.0,249.02415998]
[1738905550272,0.03,194.01,194.0,248.02415998]
[1738905550861,0.03,194.01,194.0,224.0176]
[1738905551437,0.03,194.01,194.0,218.863]
[1738905552251,10.24824145,194.01,194.0,218.863]
[1738905552558,10.24824145,194.01,194.0,0.063]
[1738905554757,15.99641438,194.01,194.0,0.063]
[1738905556653,0.03,194.01,194.0,0.063]
[1738905557052,0.03,194.01,194.0,137.263]
[1738905559063,0.03,194.01,194.0,142.4176]
[1738905560258,0.03,194.01,194.0,224.0176]
[1738905561063,0.03,194.01,194.0,239.98401438]
[1738905561275,0.03,194.01,194.0,255.05455291]
[1738905562371,0.03,194.01,194.0,256.30553291]
[1738905562754,0.03,194.01,194.0,255.30553291]
[1738905563265,0.03,194.01,194.0,225.5508]
[1738905563959,0.03,194.01,194.0,241.51721438]
[1738905564563,0.03,194.01,194.0,225.5508]
[1738905564945,0.03,194.01,194.0,224.0176]
[1738905567465,0.03,194.01,194.0,218.863]
[1738905567873,0.03,194.01,194.0,81.663]
[1738905568573,15.99641438,194.01,194.0,81.663]
[1738905568965,15.99641438,194.01,194.0,0.063]
[1738905573381,0.03,194.01,194.0,0.063]
[1738905575583,0.03,194.01,194.0,137.19115159]
[1738905577285,0.03,194.01,194.0,142.34575159]
[1738905579900,0.03,194.01,194.0,239.91216597]
[1738905580193,0.03,194.01,194.0,254.9987045]
[1738905580566,0.03,194.01,194.0,241.46136597]
[1738905584495,0.03,194.01,194.0,241.52436597]
[1738905584695,0.03,194.01,194.0,235.7689382]
[1738905585594,10.21098661,194.09,194.0,249.30627673]
[1738905585801,10.21098661,194.09,194.01,10.98379921]
[1738905586499,10.21098661,194.09,194.02,10.21098661]
[1738905586996,10.21098661,194.09,194.03,5.1538]
[1738905587195,10.21098661,194.08,194.03,5.1538]
[1738905587402,10.21098661,194.05,194.01,5.1542]
[1738905587698,10.21098661,194.07,194.01,223.94535159]
[1738905593608,10.21098661,194.06,194.01,223.94535159]
[1738905596015,10.21098661,194.06,194.01,224.00835159]
[1738905601215,10.21098661,194.08,194.01,224.00835159]
[1738905604715,10.21098661,194.04,194.01,224.00835159]
[1738905604895,10.21098661,194.03,194.01,218.85415159]
[1738905605092,10.21098661,194.02,194.01,218.85415159]
[1738905605706,10.21098661,194.02,194.01,81.663]
[1738905606995,10.21098661,194.02,194.01,0.063]
[1738905607198,15.36508661,194.02,194.01,0.063]
[1738905610527,15.61606661,194.02,194.01,0.063]
[1738905610729,72.2242675,194.02,194.01,0.063]
[1738905610903,87.89140305,194.01,194.0,0.063]
[1738905611510,20.25098,193.98,193.92,137.25415159]
[1738905611710,10.21098661,193.93,193.92,0.063]
[1738905611939,10.21098661,193.96,193.92,0.063]
[1738905613625,10.21098661,193.97,193.92,0.063]
[1738905613830,10.21098661,193.97,193.92,218.85415159]
[1738905617214,11.86388661,194.02,193.94,10.21098661]
[1738905617543,10.21098661,194.03,193.96,10.21098661]
[1738905618421,10.21098661,194.02,193.95,10.21098661]
[1738905618614,10.21098661,194.02,193.95,15.36688661]
[1738905620739,0.03,194.0,193.95,15.36688661]
[1738905621420,0.03,194.0,193.95,234.1580382]
[1738905621616,10.21098661,193.99,193.95,218.79115159]
[1738905621822,10.21098661,193.98,193.95,218.79115159]
[1738905622019,10.21098661,193.98,193.95,81.6]
[1738905622221,10.21098661,193.97,193.95,81.6]
[1738905623338,10.21098661,193.98,193.95,81.6]
[1738905623539,10.21098661,193.96,193.95,81.6]
[1738905624552,10.21098661,193.96,193.93,137.19115159]
[1738905624717,10.21098661,193.94,193.93,137.19115159]
[1738905625038,10.21098661,193.94,193.92,81.663]
[1738905626838,10.21098661,193.95,193.92,81.663]
[1738905627044,10.21098661,193.96,193.92,81.663]
[1738905628835,10.24098661,194.0,193.93,10.21098661]
[1738905629146,10.24098661,194.0,193.93,229.0021382]
[1738905629942,10.24098661,194.0,193.93,234.1584382]
[1738905630841,10.21098661,193.99,193.93,223.94745159]
[1738905631545,10.21098661,193.97,193.93,218.79115159]
[1738905633329,10.21098661,193.96,193.93,218.79115159]
[1738905633861,10.21098661,193.95,193.93,218.79115159]
[1738905634536,10.21098661,193.94,193.93,218.79115159]
[1738905634851,10.21098661,193.94,193.92,0.063]
[1738905635055,10.21098661,193.93,193.92,0.063]
[1738905635236,10.21098661,193.94,193.92,0.063]
[1738905635751,10.21098661,193.95,193.92,0.063]
[1738905635933,10.21098661,193.97,193.92,0.063]
[1738905638151,10.21098661,193.96,193.92,0.063]
[1738905639346,10.21098661,193.97,193.92,218.85415159]
[1738905640749,5.1556,193.97,193.92,218.85415159]
[1738905640950,10.21098661,193.93,193.92,218.85415159]
[1738905641933,10.21098661,193.94,193.92,218.85415159]
[1738905642324,10.21098661,193.93,193.92,218.85415159]
[1738905643053,15.36718661,193.94,193.92,218.85415159]
[1738905644532,10.21098661,193.94,193.92,218.85415159]
[1738905644732,10.21098661,193.95,193.92,218.85415159]
[1738905644933,10.21098661,193.97,193.92,218.85415159]
[1738905645358,10.21098661,193.96,193.92,218.85415159]
[1738905652952,10.21098661,193.95,193.92,218.85415159]
[1738905654063,15.36698661,193.95,193.92,218.85415159]
[1738905654364,5.156,193.95,193.92,218.85415159]
[1738905657078,5.156,193.95,193.92,81.663]
[1738905660944,15.36668661,193.96,193.92,81.663]
[1738905663564,10.21098661,193.95,193.92,81.663]
[1738905663945,0.25098,193.96,193.92,81.663]
[1738905664146,10.21098661,193.93,193.92,0.063]
[1738905664345,6.3422,193.99,193.92,81.663]
[1738905664346,10.21098661,193.99,193.92,81.663]
[1738905664550,0.03,194.0,193.93,10.21098661]
[1738905664872,0.03,194.0,193.93,229.0021382]
[1738905665452,0.03,194.0,193.94,10.21098661]
[1738905665854,10.24098661,194.0,193.94,10.21098661]
[1738905666663,10.24098661,194.0,193.93,234.1585382]
[1738905666868,15.39558661,194.0,193.93,223.94755159]
[1738905667377,10.21098661,193.99,193.93,218.79115159]
[1738905667549,10.21098661,193.98,193.93,218.79115159]
[1738905667753,10.21098661,193.96,193.93,218.79115159]
[1738905667980,10.21098661,193.96,193.93,81.6]
[1738905668790,10.21098661,193.97,193.93,81.6]
[1738905669279,15.36648661,193.97,193.93,81.6]
[1738905669508,10.21098661,193.96,193.93,81.6]
[1738905670792,10.21098661,193.94,193.93,81.6]
[1738905671975,15.36718661,193.94,193.93,81.6]
[1738905672288,10.21098661,193.94,193.93,81.6]
[1738905672584,10.21098661,193.94,193.92,0.063]
[1738905672786,10.21098661,193.93,193.92,0.063]
[1738905674087,15.36738661,193.93,193.92,0.063]
[1738905675798,15.36718661,193.94,193.92,0.063]
[1738905676503,15.36688661,193.96,193.92,81.663]
[1738905676695,10.21098661,193.97,193.92,81.663]
[1738905677197,10.21098661,193.98,193.92,218.85415159]
[1738905677377,7.96130096,193.99,193.94,10.21098661]
[1738905677579,0.03,194.0,193.94,10.21098661]
[1738905677897,0.03,194.0,193.94,229.0021382]
[1738905678300,0.03,194.0,193.94,234.1582382]
[1738905679106,10.24098661,194.0,193.94,218.79115159]
[1738905682007,10.21098661,193.99,193.94,218.79115159]
[1738905682206,10.21098661,193.98,193.94,218.79115159]
[1738905682393,10.21098661,193.97,193.94,218.79115159]
[1738905684407,10.21098661,193.95,193.94,81.6]
[1738905684610,20.0,193.93,193.92,0.063]
[1738905684806,30.21098661,193.93,193.92,0.063]
[1738905685702,30.58745661,193.93,193.92,0.063]
[1738905686123,45.57332106,193.93,193.92,0.0001]
[1738905686326,49.94501853,193.92,193.91,0.0001]
[1738905686488,0.37647,193.88,193.87,0.063]
[1738905686693,11.16147253,193.88,193.87,0.063]
[1738905687691,16.31927253,193.88,193.87,0.063]
[1738905687904,30.73112106,193.88,193.87,0.0001]
[1738905688415,0.25098,193.84,193.82,0.063]
[1738905688611,10.46196661,193.83,193.82,0.063]
[1738905689820,15.74655661,193.83,193.82,0.063]
[1738905690115,45.74655661,193.83,193.82,0.063]
[1738905690291,61.73242106,193.83,193.82,0.0001]
[1738905690498,14.78831853,193.82,193.81,0.063]
[1738905690697,65.84325158,193.82,193.81,0.0001]
[1738905691413,1.37647,193.8,193.79,0.0001]
[1738905691615,53.00541897,193.8,193.79,0.0001]
[1738905691812,58.16531897,193.8,193.79,0.0001]
[1738905692193,72.5771675,193.8,193.79,0.0001]
[1738905692594,53.54902811,193.8,193.79,0.0001]
[1738905693707,51.54902811,193.8,193.79,0.0001]
[1738905693895,35.53563128,193.8,193.79,0.0001]
[1738905694097,51.54902811,193.8,193.79,0.0001]
[1738905694411,51.54902811,193.8,193.76,0.0001]
[1738905694412,64.78831853,193.77,193.76,0.0001]
[1738905694611,44.66282853,193.75,193.74,0.063]
[1738905694820,64.19024128,193.75,193.74,0.063]
[1738905695002,65.19024128,193.75,193.74,0.063]
[1738905695613,64.19024128,193.75,193.74,0.063]
[1738905695932,69.35144128,193.75,193.74,0.063]
[1738905696425,25.36557683,193.75,193.74,0.063]
[1738905696623,16.01339683,193.77,193.74,0.063]
[1738905696795,9.1005,193.78,193.74,0.063]
[1738905697001,16.01339683,193.75,193.74,0.063]
[1738905697197,16.01339683,193.76,193.74,0.063]
[1738905698127,16.01339683,193.8,193.74,137.25415159]
[1738905698332,16.01339683,193.81,193.74,241.44274842]
[1738905698633,16.01339683,193.8,193.74,225.42935159]
[1738905699141,16.01339683,193.81,193.74,241.44274842]
[1738905700018,16.01339683,193.8,193.74,230.59065159]
[1738905700317,16.01339683,193.81,193.74,246.60404842]
[1738905702543,16.01339683,193.86,193.79,16.01339683]
[1738905702720,16.01339683,193.85,193.79,218.79115159]
[1738905703233,0.03,193.82,193.79,218.79115159]
[1738905704022,0.03,193.82,193.79,223.95125159]
[1738905705249,0.03,193.82,193.79,218.79115159]
[1738905705530,16.01339683,193.8,193.75,136.69115159]
[1738905705739,16.01339683,193.76,193.74,136.75415159]
[1738905707428,16.01339683,193.76,193.74,0.063]
[1738905707947,21.17439683,193.76,193.74,0.063]
[1738905708144,16.01339683,193.75,193.74,0.063]
[1738905709523,21.42557683,193.75,193.74,0.063]
[1738905711117,42.61631536,193.75,193.74,0.063]
[1738905711321,42.61631536,193.75,193.74,0.0001]
[1738905711527,29.20446683,193.75,193.74,0.0001]
[1738905712334,23.15546683,193.75,193.74,0.0001]
[1738905713224,21.42557683,193.75,193.74,0.0001]
[1738905714051,22.12508275,193.75,193.74,0.0001]
[1738905716659,21.42557683,193.75,193.74,0.0001]
[1738905720563,34.96291536,193.75,193.74,0.0001]
[1738905720950,50.37647,193.73,193.72,0.063]
[1738905721269,66.96388275,193.73,193.72,0.063]
[1738905721960,72.12568275,193.73,193.72,0.063]
[1738905723964,85.53753128,193.73,193.72,0.0001]
[1738905724161,30.37647,193.68,193.67,0.063]
[1738905724362,46.38986683,193.68,193.67,0.063]
[1738905724575,46.96388275,193.68,193.67,0.063]
[1738905725266,46.26437683,193.68,193.67,0.063]
[1738905725565,46.83839275,193.68,193.67,0.063]
[1738905725859,46.96388275,193.68,193.67,0.063]
[1738905726065,52.12698275,193.68,193.67,0.063]
[1738905726568,65.53883128,193.68,193.67,0.063]
[1738905726982,69.45883128,193.68,193.67,0.063]
[1738905729981,20.0,193.63,193.59,218.29115159]
[1738905730150,36.01339683,193.63,193.59,218.29115159]
[1738905731180,16.01339683,193.65,193.59,223.45665159]
[1738905731371,36.01339683,193.65,193.59,223.45665159]
[1738905731565,16.01339683,193.65,193.59,223.45665159]
[1738905732374,16.01339683,193.67,193.6,16.01339683]
[1738905732566,16.01339683,193.67,193.6,234.30454842]
[1738905733067,19.93339683,193.68,193.62,5.1647]
[1738905734173,16.01339683,193.7,193.63,17.66389683]
[1738905734369,16.01339683,193.65,193.6,218.29115159]
[1738905736050,16.01339683,193.63,193.6,218.29115159]
[1738905736274,16.01339683,193.63,193.55,164.18534842]
[1738905736492,16.01339683,193.61,193.55,143.00555159]
[1738905736696,16.01339683,193.59,193.55,143.00555159]
[1738905737156,16.01339683,193.59,193.55,136.69115159]
[1738905738472,16.01339683,193.61,193.55,141.85775159]
[1738905739175,16.01339683,193.61,193.55,136.69115159]
[1738905739380,16.01339683,193.61,193.6,0.063]
[1738905739881,34.96671536,193.61,193.6,0.063]
[1738905740173,21.42937683,193.61,193.6,0.063]
[1738905742778,34.96671536,193.61,193.6,0.063]
[1738905742956,50.98011219,193.61,193.6,0.063]
[1738905743152,30.0,193.56,193.54,0.063]
[1738905743352,16.01339683,193.55,193.54,0.063]
[1738905743555,16.26437683,193.55,193.54,0.063]
[1738905744877,21.43097683,193.55,193.54,0.063]
[1738905745075,16.01339683,193.55,193.54,0.063]
[1738905746177,21.55646683,193.55,193.54,0.063]
[1738905746381,22.13048275,193.55,193.54,0.063]
[1738905747176,35.54233128,193.55,193.54,0.063]
[1738905747359,22.13048275,193.55,193.54,0.063]
[1738905747977,22.00499275,193.55,193.54,0.063]
[1738905748159,21.43097683,193.55,193.54,0.063]
[1738905750761,16.01339683,193.55,193.54,0.063]
[1738905751283,21.43097683,193.55,193.54,0.063]
[1738905751484,22.00499275,193.55,193.54,0.063]
[1738905751777,16.01339683,193.55,193.54,0.063]
[1738905752181,16.26437683,193.55,193.54,0.063]
[1738905752387,51.43097683,193.55,193.54,0.063]
[1738905754260,51.55646683,193.55,193.54,0.063]
[1738905754664,64.96831536,193.55,193.54,0.063]
[1738905755582,51.55646683,193.55,193.54,0.063]
[1738905755779,51.43097683,193.55,193.54,0.063]
[1738905756681,0.25098,193.54,193.46,5.169]
[1738905756882,16.01339683,193.51,193.46,141.86015159]
[1738905757086,16.01339683,193.51,193.46,136.69115159]
[1738905757491,16.01339683,193.5,193.46,136.69115159]
[1738905758667,16.01339683,193.51,193.46,136.69115159]
[1738905760274,21.18109683,193.51,193.46,136.69115159]
[1738905760671,16.01339683,193.52,193.46,136.69115159]
[1738905760881,16.01339683,193.53,193.46,157.93644842]
[1738905761089,16.01339683,193.52,193.46,141.92305159]
[1738905762102,16.01339683,193.51,193.46,141.92305159]
[1738905763882,16.01339683,193.52,193.46,141.92305159]
[1738905764070,16.01339683,193.51,193.46,223.52305159]
[1738905764671,10.27252603,193.5,193.46,223.52305159]
[1738905764872,10.27252603,193.5,193.46,218.35415159]
[1738905765886,10.27252603,193.48,193.46,218.35415159]
[1738905766090,10.27252603,193.48,193.46,0.063]
[1738905767276,5.168,193.5,193.46,0.063]
[1738905767588,10.27252603,193.47,193.46,0.063]
[1738905769970,10.27252603,193.48,193.46,0.063]
[1738905772894,5.1677,193.51,193.46,0.063]
[1738905772895,10.27252603,193.49,193.46,0.063]
[1738905773899,10.30252603,193.49,193.46,0.063]
[1738905774279,10.27252603,193.48,193.46,0.063]
[1738905775885,10.27252603,193.48,193.46,136.75415159]
[1738905776993,10.30252603,193.49,193.46,136.75415159]
[1738905779402,0.03,193.49,193.46,136.75415159]
[1738905780191,10.30252603,193.49,193.46,136.75415159]
[1738905780894,0.03,193.49,193.46,141.92305159]
[1738905781216,10.30252603,193.49,193.46,136.75415159]
[1738905781591,0.03,193.49,193.46,136.75415159]
[1738905782098,0.03,193.49,193.46,141.92305159]
[1738905787399,0.03,193.49,193.46,152.19557762]
[1738905787908,0.03,193.49,193.48,24.38171603]
[1738905788102,0.03,193.49,193.48,37.91905456]
[1738905788801,0.03,193.49,193.48,256.21020615]
[1738905794517,0.03,193.49,193.48,258.81084496]
[1738905794906,0.03,193.49,193.48,254.95922615]
[1738905795913,0.03,193.49,193.48,223.45955159]
[1738905797020,0.03,193.49,193.48,233.73207762]
[1738905797614,0.03,193.49,193.48,223.45955159]
[1738905804200,0.03,193.49,193.48,233.73207762]
[1738905806800,0.03,193.49,193.48,223.45955159]
[1738905809130,0.03,193.49,193.48,233.73207762]
[1738905809636,0.03,193.49,193.48,233.79507762]
[1738905810945,0.03,193.49,193.48,223.52255159]
[1738905822247,0.03,193.49,193.48,218.35415159]
[1738905823048,0.03,193.49,193.48,223.52255159]
[1738905823727,0.03,193.49,193.48,218.35415159]
[1738905824127,0.03,193.49,193.48,0.063]
[1738905826360,10.30252603,193.49,193.48,0.063]
[1738905826530,17.96642603,193.49,193.48,0.063]
[1738905828348,23.26011603,193.49,193.48,0.063]
[1738905828553,53.26011603,193.49,193.48,0.063]
[1738905831553,53.38560603,193.49,193.48,0.063]
[1738905834158,53.95962195,193.49,193.48,0.063]
[1738905836939,5.169,193.46,193.39,136.73965159]
[1738905837258,10.27252603,193.4,193.39,0.0485]
[1738905838135,10.27252603,193.4,193.26,1.0]
[1738905838136,7.93568,193.36,193.28,10.33552603]
[1738905838335,10.39801603,193.29,193.28,0.063]
[1738905838555,0.12549,193.29,193.28,0.063]
[1738905838863,5.42448,193.29,193.28,0.063]
[1738905839162,5.1735,193.29,193.28,0.063]
[1738905839856,5.42448,193.29,193.28,0.063]
[1738905840356,14.25252603,193.3,193.28,0.063]
[1738905841149,20.0,193.27,193.2,5.0981]
[1738905841360,10.27252603,193.26,193.2,5.0981]
[1738905841770,10.27252603,193.26,193.19,137.2]
[1738905842954,10.27252603,193.26,193.19,142.3761]
[1738905843840,30.0,193.29,193.19,142.3761]
[1738905843841,10.27252603,193.25,193.19,142.3761]
[1738905844361,10.27252603,193.25,193.19,5.1761]
[1738905844863,10.27252603,193.26,193.19,5.1761]
[1738905845161,21.956326,193.24,193.19,5.1761]
[1738905845461,21.956326,193.24,193.19,15.44862603]
[1738905847161,21.956326,193.24,193.19,5.1761]
[1738905849054,10.27252603,193.23,193.17,137.2]
[1738905849254,10.27252603,193.22,193.16,5.1768]
[1738905850150,10.27252603,193.22,193.14,10.27252603]
[1738905850356,15.44802603,193.22,193.14,10.27252603]
[1738905850546,10.27252603,193.22,193.14,10.27252603]
[1738905850747,10.27252603,193.22,193.15,10.27252603]
[1738905852468,10.27252603,193.23,193.15,15.44952603]
[1738905852858,10.27252603,193.23,193.16,10.27252603]
[1738905853166,21.956326,193.24,193.19,10.27252603]
[1738905853567,21.956326,193.24,193.18,10.27252603]
[1738905854369,21.956326,193.24,193.19,10.27252603]
[1738905855352,21.956326,193.24,193.2,5.1759]
[1738905855553,21.956326,193.24,193.2,15.44842603]
[1738905855766,21.956326,193.24,193.2,5.1759]
[1738905856071,21.956326,193.24,193.2,15.44842603]
[1738905858085,21.956326,193.24,193.21,10.27252603]
[1738905858376,21.956326,193.24,193.22,5.1754]
[1738905859073,21.956326,193.24,193.2,10.27252603]
[1738905859253,21.956326,193.24,193.21,5.1757]
[1738905861061,21.956326,193.24,193.21,15.44822603]
[1738905861261,21.956326,193.24,193.22,10.27252603]
[1738905861767,21.956326,193.24,193.21,15.44822603]
[1738905862071,21.956326,193.24,193.21,152.64822603]
[1738905863955,21.956326,193.24,193.22,10.27252603]
[1738905864279,21.956326,193.24,193.21,152.64822603]
[1738905864778,10.27252603,193.28,193.21,152.57839314]
[1738905866080,10.27252603,193.3,193.24,5.1749]
[1738905866287,10.27252603,193.34,193.27,10.27252603]
[1738905866490,11.84642603,193.35,193.28,10.27252603]
[1738905866787,1.5739,193.35,193.29,10.27252603]
[1738905866967,61.48,193.36,193.3,10.27252603]
[1738905867191,61.48,193.36,193.31,10.27252603]
[1738905867484,71.75252603,193.36,193.29,10.27252603]
[1738905867848,61.48,193.36,193.32,5.1727]
[1738905868490,61.48,193.36,193.32,15.44522603]
[1738905868789,61.51,193.36,193.32,15.44522603]
[1738905870192,61.51,193.36,193.33,10.27252603]
[1738905870393,0.03,193.36,193.33,10.27252603]
[1738905870971,0.03,193.36,193.35,10.27252603]
[1738905871278,0.03,193.36,193.33,0.77561912]
[1738905871279,0.03,193.36,193.34,10.27252603]
[1738905871860,0.03,193.36,193.35,5.1719]
[1738905873782,0.03,193.36,193.35,15.44442603]
[1738905874915,0.03,193.36,193.33,147.47252603]
[1738905875095,0.03,193.36,193.33,137.2]
[1738905876092,0.03,193.36,193.33,142.3724]
[1738905876894,0.03,193.36,193.33,5.1724]
[1738905878183,0.03,193.36,193.32,10.27252603]
[1738905878184,0.03,193.36,193.31,10.27252603]
[1738905878888,10.30252603,193.36,193.3,5.1733]
[1738905879070,10.27252603,193.35,193.29,137.2]
[1738905879270,10.27252603,193.34,193.29,137.2]
[1738905880089,10.27252603,193.35,193.29,137.2]
[1738905880263,10.27252603,193.35,193.29,142.3734]
[1738905880667,10.30252603,193.36,193.29,142.3734]
[1738905880981,10.30252603,193.36,193.29,152.64592603]
[1738905881592,0.03,193.36,193.3,10.27252603]
[1738905881772,0.03,193.36,193.29,165.57982603]
[1738905881972,0.03,193.36,193.3,10.27252603]
[1738905882491,0.03,193.36,193.31,5.173]
[1738905882788,10.30252603,193.36,193.31,5.173]
[1738905883002,10.27252603,193.35,193.31,5.173]
[1738905883205,10.30252603,193.36,193.31,5.173]
[1738905883501,0.03,193.36,193.35,10.27252603]
[1738905883672,0.03,193.36,193.35,148.24801798]
[1738905883872,0.03,193.36,193.35,147.47252603]
[1738905884299,1.5962,193.44,193.35,148.47252603]
[1738905884477,1.5962,193.44,193.38,10.27252603]
[1738905884674,1.5962,193.44,193.39,10.27252603]
[1738905885080,1.5962,193.44,193.39,11.0478877]
[1738905886697,1.5962,193.44,193.4,5.1706]
[1738905888005,6.2543,193.47,193.41,10.27252603]
[1738905888178,11.85422603,193.49,193.43,10.27252603]
[1738905888379,11.85422603,193.49,193.42,10.27252603]
[1738905888588,10.27252603,193.48,193.41,147.47252603]
[1738905889711,10.27252603,193.48,193.42,0.77526248]
[1738905890084,1.5817,193.49,193.44,10.27252603]
[1738905890277,0.03,193.49,193.45,10.27252603]
[1738905891181,0.03,193.49,193.45,15.44152603]
[1738905894203,0.03,193.49,193.45,16.21665143]
[1738905894708,0.03,193.49,193.46,10.27252603]
[1738905897707,0.03,193.49,193.45,0.7751254]
[1738905897909,0.03,193.49,193.44,5.1695]
[1738905898283,0.03,193.49,193.43,5.94499047]
[1738905898482,10.30252603,193.49,193.41,15.44262603]
[1738905898682,10.30252603,193.49,193.41,16.21790147]
[1738905899594,10.27252603,193.48,193.41,16.21790147]
[1738905900909,10.27252603,193.45,193.4,218.8]
[1738905901101,10.27252603,193.43,193.38,137.2]
[1738905901411,10.27252603,193.44,193.38,137.2]
[1738905901784,10.27252603,193.42,193.36,218.863]
[1738905901987,10.27252603,193.41,193.36,218.863]
[1738905902897,10.27252603,193.42,193.36,218.863]
[1738905903609,10.27252603,193.42,193.36,81.663]
[1738905903905,10.27252603,193.4,193.36,81.663]
[1738905904107,10.27252603,193.39,193.36,81.663]
[1738905905387,15.44322603,193.4,193.36,81.663]
[1738905906004,5.1707,193.4,193.36,81.663]
[1738905906204,10.27252603,193.42,193.36,81.663]
[1738905906510,10.27252603,193.42,193.36,86.8346]
[1738905907489,10.27252603,193.42,193.36,81.663]
[1738905907690,10.27252603,193.41,193.36,81.663]
[1738905909417,10.27252603,193.39,193.36,81.663]
[1738905909620,10.27252603,193.37,193.36,0.063]
[1738905910605,1.6122,193.38,193.36,0.063]
[1738905912922,10.27252603,193.41,193.36,0.063]
[1738905913129,10.27252603,193.42,193.36,0.063]
[1738905914324,10.27252603,193.41,193.36,0.063]
[1738905915417,10.27252603,193.42,193.36,0.063]
[1738905915998,18.37432603,193.43,193.36,0.063]
[1738905916811,5.169,193.46,193.38,10.27252603]
[1738905917017,5.169,193.46,193.38,147.47252603]
[1738905917018,15.44152603,193.46,193.38,147.47252603]
[1738905917609,15.44152603,193.46,193.38,152.64342603]
[1738905918219,10.27252603,193.45,193.38,152.64342603]
[1738905918518,0.03,193.43,193.38,152.64342603]
[1738905919090,0.03,193.43,193.39,10.27252603]
[1738905920016,0.03,193.43,193.42,10.27252603]
[1738905920194,0.03,193.43,193.42,149.24768324]
[1738905920391,0.03,193.49,193.43,1.0]
[1738905920719,0.03,193.49,193.46,10.27252603]
[1738905921422,0.03,193.49,193.46,15.44122603]
[1738905921714,0.03,193.49,193.47,10.27252603]
[1738905921894,0.03,193.49,193.47,147.47252603]
[1738905922511,0.03,193.49,193.48,10.27252603]
[1738905922731,0.03,193.49,193.48,16.04313082]
[1738905922925,0.03,193.49,193.48,16.81817544]
[1738905923414,0.03,193.49,193.48,21.98657544]
[1738905924424,0.03,193.49,193.48,21.21153082]
[1738905925831,0.03,193.49,193.48,21.98654622]
[1738905926221,0.03,193.49,193.48,159.18654622]
[1738905926418,13.37695393,193.57,193.48,158.41153082]
[1738905926614,13.37695393,193.57,193.5,16.04313082]
[1738905926936,1.574,193.59,193.53,16.04313082]
[1738905927137,1.574,193.59,193.53,153.24313082]
[1738905928137,1.574,193.59,193.53,158.41013082]
[1738905930741,0.03,193.6,193.56,16.04313082]
[1738905930955,0.03,193.6,193.57,16.04313082]
[1738905931239,0.03,193.6,193.57,15.34693082]
[1738905931644,0.03,193.6,193.57,152.54693082]
[1738905931844,0.03,193.6,193.58,16.04313082]
[1738905932155,0.03,193.6,193.59,16.04313082]
[1738905933139,0.03,193.6,193.59,21.20863082]